bitfinex-derivatives/quotes_ETHF0:USTF0_20251001
["timestamp","ask_amount","ask_price","bid_price","bid_amount"]
[1759333672021,1.67643,4331.1,4331.0,0.95203222]
[1759333672220,2.18996329,4331.1,4331.0,0.73183222]
[1759333672419,2.18996329,4331.1,4331.0,1.26973222]
[1759333672715,2.18996329,4331.1,4331.0,0.00243222]
[1759333673724,2.18996329,4331.1,4331.0,0.92593222]
[1759333673916,2.42596329,4331.1,4331.0,0.92593222]
[1759333674427,1.64556329,4331.1,4331.0,1.51703222]
[1759333674723,1.88156329,4331.1,4331.0,1.51703222]
[1759333677217,2.44166329,4331.1,4331.0,0.56023222]
[1759333677419,0.51353329,4331.1,4331.0,6.51703222]
[1759333677618,3.62307,4331.7,4331.6,0.5578]
[1759333677619,3.2078,4331.7,4331.6,0.5578]
[1759333677921,4.0927946,4331.7,4331.6,1.2975]
[1759333678121,5.4189646,4331.7,4331.6,1.2975]
[1759333678322,5.4189646,4331.7,4331.6,0.9235]
[1759333678626,1.69711,4331.3,4331.2,1.2975]
[1759333678821,1.69713,4331.1,4331.0,0.00243222]
[1759333679127,2.4472246,4331.1,4331.0,1.51703222]
[1759333679422,1.8871246,4331.1,4331.0,1.51703222]
[1759333679922,1.7958946,4331.1,4331.0,1.51703222]
[1759333680421,1.7958946,4331.1,4331.0,1.29993222]
[1759333682520,1.7958946,4331.1,4331.0,1.51703222]
[1759333682719,1.7958946,4331.1,4331.0,1.29993222]
[1759333683027,1.97741916,4331.1,4331.0,1.29993222]
[1759333683326,1.7958946,4331.1,4331.0,1.51703222]
[1759333683522,1.2357946,4331.1,4331.0,1.51703222]
[1759333683720,0.5140946,4331.1,4331.0,1.51703222]
[1759333684128,0.8849946,4331.1,4331.0,1.51703222]
[1759333685330,0.5140946,4331.1,4331.0,1.51703222]
[1759333685520,3.2078,4331.7,4331.6,1.2975]
[1759333685824,0.00220237,4332.1,4332.0,1.92984]
[1759333686018,0.37310237,4332.1,4332.0,1.5146]
[1759333686221,0.93320237,4332.1,4332.0,1.5146]
[1759333686523,1.28400237,4332.1,4332.0,1.2975]
[1759333687122,0.00220237,4332.1,4332.0,1.5146]
[1759333688022,0.37310237,4332.1,4332.0,1.5146]
[1759333688320,0.00220237,4332.1,4332.0,1.5146]
[1759333689424,0.00220237,4332.1,4332.0,4.7224]
[1759333689626,1.28400237,4332.1,4332.0,1.2975]
[1759333691122,1.69708,4331.6,4331.5,1.2975]
[1759333691327,1.69708,4331.6,4331.5,1.5146]
[1759333691825,0.78617,4331.8,4331.7,0.7397]
[1759333692022,1.69707,4331.8,4331.7,1.2975]
[1759333692420,0.78617,4331.8,4331.7,1.2975]
[1759333692626,1.69707,4331.8,4331.7,1.2975]
[1759333693123,3.4438,4332.0,4331.2,1.2975]
[1759333693124,1.2818,4331.3,4331.2,1.2975]
[1759333694430,3.6231,4331.4,4331.3,0.5578]
[1759333694630,0.7862,4331.4,4331.3,1.2975]
[1759333694825,1.3463,4331.4,4331.3,1.2975]
[1759333695031,0.236,4331.7,4331.3,1.2975]
[1759333695333,0.78619,4331.5,4331.4,1.2975]
[1759333695631,1.69709,4331.5,4331.4,1.2975]
[1759333697327,10.22529,4331.5,4331.4,0.7397]
[1759333697532,1.69712,4331.3,4331.2,0.3657]
[1759333697735,12.38324755,4331.3,4331.2,0.3657]
[1759333698626,12.38324755,4331.3,4331.0,0.56023222]
[1759333698627,0.41533,4331.1,4331.0,0.00243222]
[1759333698828,10.9218,4331.1,4331.0,1.29993222]
[1759333699330,10.7618,4331.1,4331.0,1.51703222]
[1759333700027,4.3585,4331.4,4331.3,1.64451]
[1759333700230,5.22439581,4331.4,4331.3,1.64451]
[1759333700430,5.22439581,4331.4,4331.3,0.75991]
[1759333700831,5.22439581,4331.4,4331.3,0.3446]
[1759333701032,1.2745,4331.1,4331.0,0.41776222]
[1759333701232,1.78059581,4331.1,4331.0,0.41776222]
[1759333701432,1.78059581,4331.1,4331.0,0.76236222]
[1759333702133,1.78059581,4331.1,4331.0,1.29566222]
[1759333702333,3.2078,4331.4,4331.3,0.41531]
[1759333702534,4.86452081,4331.4,4331.3,1.64451]
[1759333702733,5.22432081,4331.4,4331.3,1.64451]
[1759333703733,5.22432081,4331.4,4331.3,1.2292]
[1759333704137,5.22432081,4331.4,4331.3,0.3446]
[1759333704735,5.63962081,4331.4,4331.2,0.41531]
[1759333704930,1.72372081,4331.3,4331.2,1.66491]
[1759333705133,0.85152081,4331.3,4331.2,1.66491]
[1759333705833,1.37452081,4331.3,4331.2,1.66491]
[1759333708838,2.13903081,4331.3,4331.2,0.3672]
[1759333709042,2.13903081,4331.3,4331.2,0.78252]
[1759333709743,1.72372081,4331.3,4331.2,0.78252]
[1759333710443,0.50602081,4331.3,4331.2,1.66492]
[1759333710939,3.2078,4331.9,4331.8,0.41526]
[1759333711142,4.93151233,4331.9,4331.8,0.8824]
[1759333711340,1.2177,4331.1,4331.0,0.41777222]
[1759333711642,1.72371233,4331.1,4331.0,0.78497222]
[1759333711844,1.72371233,4331.1,4331.0,1.66737222]
[1759333712044,1.2177,4331.1,4331.0,1.66737222]
[1759333712539,0.6947,4331.1,4331.0,1.87477222]
[1759333712845,0.3455,4331.1,4331.0,1.87477222]
[1759333713554,0.8685,4331.1,4331.0,1.87477222]
[1759333714442,1.72582882,4331.1,4331.0,1.87477222]
[1759333714642,1.72582882,4331.1,4331.0,1.66737222]
[1759333717447,1.72582882,4331.1,4331.0,0.95617222]
[1759333717841,1.72582882,4331.1,4331.0,0.41777222]
[1759333718648,1.72582882,4331.1,4331.0,0.78497222]
[1759333718849,1.72582882,4331.1,4331.0,1.32337222]
[1759333719556,10.51582882,4331.1,4331.0,1.32337222]
[1759333719756,1.72582882,4331.1,4331.0,1.32337222]
[1759333721351,1.72582882,4331.1,4331.0,0.78497222]
[1759333721948,1.72582882,4331.1,4331.0,1.87477222]
[1759333722345,1.20282882,4331.1,4331.0,1.87477222]
[1759333722550,1.72582882,4331.1,4331.0,1.87477222]
[1759333723858,1.72582882,4331.1,4331.0,1.66737222]
[1759333724954,1.72582882,4331.1,4331.0,0.41777222]
[1759333726749,1.72582882,4331.1,4331.0,0.78497222]
[1759333726947,1.72582882,4331.1,4331.0,1.66737222]
[1759333728651,1.72582882,4331.1,4331.0,0.41777222]
[1759333730257,1.72582882,4331.1,4331.0,0.78497222]
[1759333731550,1.72582882,4331.1,4331.0,1.66737222]
[1759333733049,2.14115882,4331.1,4331.0,0.00243222]
[1759333733255,2.14115882,4331.1,4331.0,0.41777222]
[1759333733851,2.37715882,4331.1,4331.0,0.41777222]
[1759333734046,1.96182882,4331.1,4331.0,0.41777222]
[1759333734950,2.37715882,4331.1,4331.0,0.41777222]
[1759333735554,1.96182882,4331.1,4331.0,0.41777222]
[1759333736958,2.37715882,4331.1,4331.0,0.41777222]
[1759333737158,1.96182882,4331.1,4331.0,0.41777222]
[1759333739661,1.96182882,4331.1,4331.0,0.77537222]
[1759333739852,11.58715882,4331.1,4331.0,0.41777222]
[1759333740256,11.17182882,4331.1,4331.0,0.41777222]
[1759333740457,11.58715882,4331.1,4331.0,1.31327222]
[1759333740861,11.17182882,4331.1,4331.0,1.31327222]
[1759333741658,11.58715882,4331.1,4331.0,0.00243222]
[1759333741967,1.2536,4330.2,4330.1,0.77302]
[1759333742165,1.76172882,4330.2,4330.1,0.77302]
[1759333742563,2.17713882,4330.2,4330.1,0.41542]
[1759333742761,1.76172882,4330.2,4330.1,0.41542]
[1759333742961,1.76172882,4330.2,4330.1,0.41811771]
[1759333743762,1.76172882,4330.2,4330.1,1.31361771]
[1759333744567,1.76172882,4330.2,4330.1,1.65491771]
[1759333746359,0.85992882,4330.2,4330.1,1.65491771]
[1759333746864,1.39802882,4330.2,4330.1,1.65491771]
[1759333747464,1.76172882,4330.2,4330.1,1.65491771]
[1759333747663,2.17714882,4330.2,4330.1,0.00269771]
[1759333748163,2.17714882,4330.2,4330.1,0.41811771]
[1759333748663,1.76172882,4330.2,4330.1,0.41811771]
[1759333749665,1.76172882,4330.2,4329.5,0.8955]
[1759333749666,0.7155,4329.6,4329.5,0.8955]
[1759333749867,1.2536,4329.6,4329.5,1.31098]
[1759333750063,1.2536,4329.6,4329.5,1.65228]
[1759333750670,1.2536,4329.6,4329.5,1.65473299]
[1759333751676,1.2536,4329.6,4329.5,0.00245299]
[1759333751867,11.22349353,4329.6,4329.5,0.00245299]
[1759333752571,11.22349353,4329.6,4329.5,0.89795299]
[1759333753075,11.22349353,4329.6,4329.5,0.36005299]
[1759333753471,11.22349353,4329.6,4329.5,0.00245299]
[1759333753874,1.2536,4329.0,4328.9,0.5379]
[1759333754179,10.8236,4329.0,4328.9,1.31104]
[1759333754477,0.5381,4329.3,4329.2,0.41551]
[1759333754679,4.15674404,4329.3,4329.2,1.11441]
[1759333754873,1.76869353,4329.3,4329.2,0.77494773]
[1759333755070,9.60869353,4329.3,4329.2,0.77494773]
[1759333755271,9.09554949,4329.3,4329.2,0.77494773]
[1759333755471,9.09554949,4329.3,4329.2,1.31284773]
[1759333755670,4.09554949,4329.3,4329.2,1.31284773]
[1759333755974,4.09554949,4329.3,4329.2,0.77494773]
[1759333756180,4.09554949,4329.3,4329.2,0.41734773]
[1759333756487,10.40554949,4329.3,4329.2,0.41734773]
[1759333757989,8.60554949,4329.3,4329.2,0.41734773]
[1759333759191,8.60554949,4329.3,4329.2,0.77494773]
[1759333759577,8.60554949,4329.3,4329.2,1.31284773]
[1759333760584,8.60554949,4329.3,4329.2,0.41734773]
[1759333761087,8.60554949,4329.3,4329.2,1.30744773]
[1759333761884,8.60554949,4329.3,4329.2,1.63614773]
[1759333762591,9.02104949,4329.3,4329.2,0.00183773]
[1759333762788,9.02104949,4329.3,4329.2,0.41734773]
[1759333764578,9.02104949,4329.3,4329.2,0.00183773]
[1759333764784,9.35451037,4329.3,4329.2,0.41734773]
[1759333764984,8.84154949,4329.3,4329.2,0.41734773]
[1759333765393,9.25704949,4329.3,4329.2,0.00183773]
[1759333765590,9.77006472,4329.3,4329.2,0.41734773]
[1759333765789,9.35456472,4329.3,4329.2,0.41734773]
[1759333770297,9.35456472,4329.3,4329.2,0.00183773]
[1759333770488,9.35456472,4329.3,4329.2,0.41734773]
[1759333770996,9.77006472,4329.3,4329.2,0.00183773]
[1759333771696,9.77006472,4329.3,4329.2,0.41734773]
[1759333772592,9.35456472,4329.3,4328.8,3.2078]
[1759333772892,1.84354,4329.0,4328.9,0.41554]
[1759333773098,11.65701523,4329.0,4328.9,0.41554]
[1759333773591,12.07254523,4329.0,4328.9,0.41554]
[1759333773787,12.07254523,4329.0,4328.9,0.41777454]
[1759333774900,1.2223,4327.9,4327.8,4.82334]
[1759333775898,1.2223,4327.9,4327.8,4.82559193]
[1759333777596,0.8795,4327.9,4327.8,4.82559193]
[1759333777987,0.5271,4328.2,4328.1,0.41561]
[1759333778295,0.5271,4328.5,4328.1,1.61551]
[1759333778493,11.3323,4328.5,4328.4,1.61548]
[1759333778693,12.05347879,4328.5,4328.4,0.75948]
[1759333778894,12.05347879,4328.5,4328.4,0.41558]
[1759333779492,12.05347879,4328.5,4328.4,0.75948]
[1759333779694,11.84777879,4328.5,4328.4,1.61548]
[1759333779898,11.13777879,4328.5,4328.4,1.61548]
[1759333780196,11.34347879,4328.5,4328.4,1.26639]
[1759333780403,11.34347879,4328.5,4328.4,0.75949]
[1759333780588,11.13777879,4328.5,4328.4,1.61549]
[1759333781202,11.34347879,4328.5,4328.4,1.26639]
[1759333783196,11.13777879,4328.5,4328.4,1.61549]
[1759333783390,5.33787879,4328.5,4328.4,1.61549]
[1759333783596,0.86787879,4328.5,4328.4,1.61549]
[1759333783997,2.77787879,4328.5,4328.4,1.61549]
[1759333784397,0.86787879,4328.5,4328.4,1.61549]
[1759333784599,1.39497879,4328.5,4328.4,1.61549]
[1759333785301,0.86787879,4328.5,4328.4,1.61549]
[1759333786704,0.51547879,4328.5,4328.4,1.61549]
[1759333786901,0.8795,4328.8,4328.7,1.10856]
[1759333787104,1.39530803,4328.8,4328.7,1.61546]
[1759333787600,1.73810803,4328.8,4328.7,1.61546]
[1759333789507,0.86820803,4328.8,4328.7,1.61546]
[1759333789708,1.39530803,4328.8,4328.7,1.61546]
[1759333792405,0.86820803,4328.8,4328.7,1.61546]
[1759333792709,1.39530803,4328.8,4328.7,1.61546]
[1759333793314,0.86820803,4328.8,4328.7,1.61546]
[1759333793913,0.51580803,4328.8,4328.7,1.61546]
[1759333794116,1.1942,4329.1,4329.0,1.60383]
[1759333794304,1.71048364,4329.1,4329.0,1.60383]
[1759333795011,1.71048364,4329.1,4329.0,0.41553]
[1759333795607,2.12600364,4329.1,4329.0,0.41553]
[1759333795814,1.71048364,4329.1,4329.0,0.41553]
[1759333798421,2.12600364,4329.1,4329.0,0.41553]
[1759333798920,1.71048364,4329.1,4329.0,0.41553]
[1759333799419,2.07766,4329.0,4327.6,1.64599045]
[1759333799621,2.07766,4329.0,4327.1,2.05707943]
[1759333799622,1.1643,4327.2,4327.1,2.05707943]
[1759333799921,1.1643,4326.8,4326.7,4.48345]
[1759333800219,1.18325105,4326.8,4326.5,0.93487]
[1759333800412,1.1643,4326.6,4326.5,0.75657]
[1759333800614,1.68045105,4326.6,4326.5,0.75938356]
[1759333800813,1.68045105,4326.6,4326.5,1.27848356]
[1759333802719,1.68045105,4326.6,4326.5,1.60688356]
[1759333803112,1.1643,4326.6,4326.5,1.60688356]
[1759333804010,1.1643,4326.6,4326.5,1.27848356]
[1759333804217,1.1643,4326.6,4326.5,1.60688356]
[1759333804411,1.1643,4326.6,4326.5,1.80238356]
[1759333805922,1.1643,4326.6,4326.5,0.41858356]
[1759333806319,1.1643,4326.6,4326.5,0.00281356]
[1759333807226,1.1643,4326.6,4326.5,0.34361356]
[1759333807525,1.1643,4326.6,4326.5,0.86271356]
[1759333809531,1.1643,4326.6,4326.5,1.19111356]
[1759333809923,1.1643,4326.6,4326.5,1.60688356]
[1759333810525,1.1643,4326.6,4326.5,1.80238356]
[1759333811731,1.1643,4326.6,4326.5,2.03838356]
[1759333812026,0.8247,4326.9,4326.8,1.08494]
[1759333812227,0.8247,4326.9,4326.8,1.84004]
[1759333812228,0.3275,4326.9,4326.8,1.84004]
[1759333812420,0.4972,4327.4,4327.0,1.23481]
[1759333812621,0.3275,4327.8,4327.7,1.60395]
[1759333812929,0.4972,4328.2,4328.1,1.08481]
[1759333812930,0.8247,4328.2,4328.1,1.08481]
[1759333813127,1.1643,4328.2,4328.1,0.75641]
[1759333814523,1.1643,4328.2,4328.1,1.27551]
[1759333815131,1.1643,4328.2,4328.1,1.60391]
[1759333815531,0.3275,4328.2,4328.1,1.60391]
[1759333815928,4.3721,4328.6,4328.5,1.60388]
[1759333816231,14.94686386,4328.6,4328.5,1.60388]
[1759333816629,4.92686386,4328.6,4328.5,1.60388]
[1759333817836,4.92686386,4328.6,4328.5,1.79938]
[1759333818036,0.55476386,4328.6,4328.5,1.79938]
[1759333818236,1.5961,4329.0,4328.9,1.27543]
[1759333818437,4.8808794,4329.0,4328.9,1.60383]
[1759333818634,11.9148794,4329.0,4328.9,1.60383]
[1759333818841,11.8448794,4329.0,4328.9,1.60383]
[1759333819835,1.9148794,4329.0,4328.9,1.60383]
[1759333820042,11.0148794,4329.0,4328.9,1.60383]
[1759333820240,4.0148794,4329.0,4328.9,1.60383]
[1759333820440,11.4748794,4329.0,4328.9,1.60383]
[1759333820741,0.01029949,4329.3,4329.2,1.59501]
[1759333820946,1.1797,4330.0,4329.9,1.59494]
[1759333821944,1.18152141,4330.0,4329.9,1.59665973]
[1759333822144,1.38982141,4330.0,4329.9,0.74665973]
[1759333822445,1.18152141,4330.0,4329.9,1.59665973]
[1759333823150,0.00182141,4330.0,4329.9,1.59665973]
[1759333831648,0.4862,4330.9,4330.5,0.206]
[1759333831850,1.3816,4331.5,4331.4,0.7361]
[1759333832144,1.1733,4331.5,4331.4,1.0627]
[1759333832350,1.1733,4331.5,4331.4,1.5498]
[1759333832351,0.3483,4331.5,4331.4,1.5498]
[1759333832649,3.5561,4331.7,4331.6,1.54978]
[1759333833050,3.55771755,4331.7,4331.6,1.54978]
[1759333833249,0.1937,4331.5,4331.3,1.52536]
[1759333833548,0.1937,4331.5,4331.3,0.7361]
[1759333833549,1.1733,4331.4,4331.3,0.7361]
[1759333833751,11.2333,4331.4,4331.3,1.2232]
[1759333836344,11.2333,4331.4,4331.3,1.5498]
[1759333837446,0.1937,4331.0,4330.6,0.4871]
[1759333837653,1.1733,4330.7,4330.6,1.22327]
[1759333840048,1.1733,4330.7,4330.6,0.41537]
[1759333841654,1.72592277,4330.7,4330.6,0.41537]
[1759333845453,1.72592277,4330.7,4330.6,0.73617]
[1759333845857,1.72592277,4330.7,4330.6,1.22327]
[1759333847358,1.72776289,4330.7,4330.6,1.22327]
[1759333848857,2.14313289,4330.7,4330.6,0.41537]
[1759333850152,1.72776289,4330.7,4330.6,0.41537]
[1759333850958,1.72776289,4330.7,4330.6,0.73617]
[1759333851148,1.72776289,4330.7,4330.6,1.22327]
[1759333854857,2.14313289,4330.7,4330.6,1.22327]
[1759333855357,2.14313289,4330.7,4330.6,0.41537]
[1759333855660,0.6564,4330.3,4330.2,0.8924]
[1759333855854,1.68516289,4330.3,4330.2,1.79892]
[1759333856047,2.10057289,4330.3,4330.2,1.3835]
[1759333856253,1.54612,4330.2,4330.1,0.41543]
[1759333856456,2.10058289,4330.2,4330.1,0.41543]
[1759333858860,0.41544,4330.0,4329.9,0.90825973]
[1759333859062,5.81000289,4330.0,4329.9,0.00171973]
[1759333859364,11.74000289,4330.0,4329.9,0.00171973]
[1759333859863,14.94780289,4330.0,4329.9,0.02510813]
[1759333860063,14.29736289,4330.0,4329.9,0.36370813]
[1759333860363,13.99296289,4330.0,4329.9,1.58905813]
[1759333860957,14.19736289,4330.0,4329.9,1.58905813]
[1759333861159,13.99296289,4330.0,4329.9,1.58905813]
[1759333861358,4.89296289,4330.0,4329.9,1.58905813]
[1759333862955,5.30840289,4330.0,4329.9,1.58905813]
[1759333863555,5.51280289,4330.0,4329.9,1.58905813]
[1759333863757,5.51280289,4330.0,4329.9,0.44055813]
[1759333863963,15.63780289,4330.0,4329.9,0.44055813]
[1759333864362,15.63780289,4330.0,4329.9,0.02510813]
[1759333864663,15.22236289,4330.0,4329.9,0.02510813]
[1759333864851,15.22236289,4330.0,4329.9,1.27025813]
[1759333864852,14.98736289,4330.0,4329.9,1.27025813]
[1759333865057,14.41736289,4330.0,4329.9,1.27025813]
[1759333865259,14.41736289,4330.0,4329.9,1.58905813]
[1759333865967,11.20956289,4330.0,4329.9,1.58905813]
[1759333866167,11.00516289,4330.0,4329.9,1.58905813]
[1759333866866,1.68516289,4330.0,4329.9,1.58905813]
[1759333867461,1.21086289,4330.0,4329.9,1.58905813]
[1759333868464,0.88676289,4330.0,4329.9,1.58905813]
[1759333868672,0.88676289,4330.0,4329.9,42.38905813]
[1759333869167,0.88676289,4330.0,4329.9,1.58905813]
[1759333869369,1.36106289,4330.0,4329.9,1.58905813]
[1759333869966,1.68516289,4330.0,4329.9,1.58905813]
[1759333870668,1.88956289,4330.0,4329.9,0.77915813]
[1759333870869,1.88956289,4330.0,4329.9,0.44055813]
[1759333871368,11.80500289,4330.0,4329.9,0.02510813]
[1759333871870,12.04000289,4330.0,4329.9,0.02510813]
[1759333872566,2.12456289,4330.0,4329.9,0.77915813]
[1759333872768,2.30500289,4330.0,4329.9,1.27025813]
[1759333872970,2.30500289,4330.0,4329.9,0.85480813]
[1759333873172,2.30500289,4330.0,4329.9,1.27025813]
[1759333873669,2.30500289,4330.0,4329.9,0.44055813]
[1759333873870,2.30500289,4330.0,4329.9,0.36370813]
[1759333874071,2.30500289,4330.0,4329.9,0.02510813]
[1759333874471,12.20280289,4330.0,4329.9,0.02510813]
[1759333874668,1.1307,4329.2,4329.1,0.75412]
[1759333874874,1.68516289,4329.2,4329.1,1.24522]
[1759333875568,1.68516289,4329.2,4329.1,1.24787574]
[1759333875768,0.55446289,4329.2,4329.1,1.80167574]
[1759333876164,0.55446289,4329.2,4329.1,6.80167574]
[1759333876375,0.4743,4329.9,4329.8,0.41546]
[1759333876569,1.68374996,4329.9,4329.8,1.56396]
[1759333877276,1.20944996,4329.9,4329.8,1.56396]
[1759333877575,0.88534996,4329.9,4329.8,1.56396]
[1759333880476,0.88534996,4329.9,4329.8,1.79896]
[1759333880870,0.55304996,4329.9,4329.8,1.79896]
[1759333882878,1.66044996,4329.9,4329.8,1.79896]
[1759333885875,1.66044996,4329.9,4329.8,1.56396]
[1759333887977,1.66044996,4329.9,4329.8,1.79896]
[1759333893685,1.66044996,4329.9,4329.8,1.56396]
[1759333897988,1.66044996,4329.9,4329.8,0.41546]
[1759333898288,1.66044996,4329.9,4329.8,1.54956]
[1759333898797,1.66044996,4329.9,4329.8,1.21696]
[1759333899894,1.18514996,4329.9,4329.8,1.54956]
[1759333900100,0.55304996,4329.9,4329.8,1.78456]
[1759333905204,1.39404996,4329.9,4329.8,1.78456]
[1759333905899,0.55304996,4329.9,4329.8,1.78456]
[1759333910207,1.39404996,4329.9,4329.8,1.78456]
[1759333912310,1.39404996,4329.9,4329.8,1.54956]
[1759333912510,1.39404996,4329.9,4329.8,1.78456]
[1759333913707,0.5011,4330.8,4330.3,0.6462]
[1759333913908,0.8288,4331.1,4331.0,1.3215]
[1759333914214,1.1431,4331.1,4331.0,1.21264]
[1759333914412,1.1431,4331.1,4331.0,1.54234]
[1759333915416,10.2331,4331.1,4331.0,1.54234]
[1759333915712,1.1431,4331.1,4331.0,1.54234]
[1759333915915,10.4531,4331.1,4331.0,1.54234]
[1759333916214,9.9331,4331.1,4331.0,4.75014]
[1759333916414,4.8831,4331.1,4331.0,4.75014]
[1759333916714,5.1631,4331.1,4331.0,4.98514]
[1759333917016,1.1431,4331.1,4331.0,4.98514]
[1759333917914,8.9731,4331.1,4331.0,4.98514]
[1759333918211,8.9731,4331.1,4331.0,5.17964]
[1759333919807,8.9731,4331.1,4331.0,4.98514]
[1759333920011,0.50271755,4331.7,4331.0,4.7643]
[1759333920308,1.14471755,4331.7,4331.6,1.54229]
[1759333920708,6.90471755,4331.7,4331.6,1.54229]
[1759333920907,6.90471755,4331.7,4331.6,1.21259]
[1759333921110,6.90471755,4331.7,4331.6,0.73179]
[1759333921916,6.90471755,4331.7,4331.6,1.21259]
[1759333923614,1.14471755,4331.7,4331.6,1.21259]
[1759333925709,1.67492055,4331.7,4331.6,1.21259]
[1759333925909,1.67492055,4331.7,4331.6,1.54229]
[1759333926511,1.67492055,4331.7,4331.6,4.75009]
[1759333929415,1.67492055,4331.7,4331.6,4.98509]
[1759333934222,10.56020055,4331.7,4331.6,0.41529]
[1759333942627,10.56131098,4331.7,4331.6,0.41529]
[1759333943428,10.14603098,4331.7,4331.6,0.41529]
[1759333943627,10.56131098,4331.7,4331.6,0.41529]
[1759333944928,2.09131098,4331.7,4331.6,0.41529]
[1759333946531,11.34131098,4331.7,4331.6,0.41529]
[1759333946733,1.5121,4331.6,4331.5,0.41529]
[1759333946925,2.27841343,4331.6,4331.5,0.41529]
[1759333947127,11.75841343,4331.6,4331.5,0.41529]
[1759333948727,11.34311343,4331.6,4331.5,1.20119]
[1759333950833,2.46311343,4331.6,4331.5,1.20119]
[1759333951033,1.62811343,4331.6,4331.5,1.51709]
[1759333951332,0.53131343,4331.6,4331.5,1.70239]
[1759333959035,1.62811343,4331.6,4331.5,0.41529]
[1759333959241,10.95811343,4331.6,4331.5,0.41529]
[1759333962838,10.95811343,4331.6,4331.5,1.51709]
[1759333963036,10.95811343,4331.6,4331.5,0.41529]
[1759333964441,10.95811343,4331.6,4331.5,1.51709]
[1759333964735,10.95811343,4331.6,4331.5,1.20119]
[1759333964936,10.95811343,4331.6,4331.5,0.41529]
[1759333968543,10.95811343,4331.6,4331.5,1.20119]
[1759333969042,10.95811343,4331.6,4331.5,0.41529]
[1759333970053,11.19311343,4331.6,4331.5,0.41529]
[1759333972346,10.95811343,4331.6,4331.5,0.41529]
[1759333972550,11.19311343,4331.6,4331.5,0.41529]
[1759333977251,11.19311343,4331.6,4331.5,0.4153]
[1759333977452,1.0882,4331.4,4331.3,0.41531]
[1759333977756,11.63451343,4331.4,4331.3,0.41531]
[1759333984560,11.63451343,4331.4,4331.3,1.17631]
[1759333985557,11.63451343,4331.4,4331.3,0.73101]
[1759333985756,11.63451343,4331.4,4331.3,0.41531]
[1759333989858,11.63451343,4331.4,4331.3,1.17631]
[1759333990960,11.63451343,4331.4,4331.3,0.73101]
[1759333991567,11.63451343,4331.4,4331.3,0.41531]
[1759333999470,11.63451343,4331.4,4331.3,1.17631]
[1759334000368,11.39951343,4331.4,4331.3,1.17631]
[1759334000668,11.63451343,4331.4,4331.3,0.41531]
[1759334011170,11.39951343,4331.4,4331.3,1.18831]
[1759334011473,4.31451343,4331.4,4331.3,1.49211]
[1759334012072,10.41451343,4331.4,4331.3,1.49211]
[1759334015874,10.17951343,4331.4,4331.3,1.49211]
[1759334016175,10.17951343,4331.4,4331.3,0.41531]
[1759334017284,10.41451343,4331.4,4331.3,0.41531]
[1759334021777,10.17951343,4331.4,4331.3,1.18831]
[1759334022982,10.17951343,4331.4,4331.3,1.49211]
[1759334023277,9.6482,4331.4,4331.3,1.49211]
[1759334023483,10.18761744,4331.4,4331.3,1.49211]
[1759334023986,10.05761744,4331.4,4331.3,1.49211]
[1759334024285,10.05761744,4331.4,4331.3,1.18831]
[1759334024691,10.05761744,4331.4,4331.3,1.49211]
[1759334026185,10.05761744,4331.4,4331.3,0.41531]
[1759334027188,10.29261744,4331.4,4331.3,0.41531]
[1759334033995,10.70792744,4331.4,4331.3,0.41531]
[1759334034795,10.29261744,4331.4,4331.3,0.41531]
[1759334037293,10.70791744,4331.4,4331.3,0.41531]
[1759334039497,10.70791744,4331.4,4331.3,0.87731]
[1759334039498,10.29261744,4331.4,4331.3,0.87731]
[1759334039999,9.27741744,4331.4,4331.3,1.73671]
[1759334040196,10.04811744,4331.4,4331.3,1.73671]
[1759334041296,10.28211744,4331.4,4331.3,1.73671]
[1759334041495,10.28211744,4331.4,4331.3,0.73131]
[1759334041698,10.28211744,4331.4,4331.3,0.41531]
[1759334042201,10.24301744,4331.4,4331.3,0.41531]
[1759334042800,10.69741744,4331.4,4331.3,0.41531]
[1759334043297,1.47803,4331.3,4331.2,0.41532]
[1759334043493,10.86744744,4331.3,4331.2,0.41532]
[1759334045702,1.02364,4331.1,4331.0,0.41533]
[1759334045892,11.10145744,4331.1,4331.0,0.41533]
[1759334047701,1.20915,4331.0,4330.9,0.41535]
[1759334047906,10.47761744,4331.0,4330.9,0.41535]
[1759334048717,1.78761744,4331.0,4330.9,0.41535]
[1759334049716,11.39761744,4331.0,4330.9,1.19335]
[1759334052517,11.39761744,4331.0,4330.9,1.50275]
[1759334052719,11.31211744,4331.0,4330.9,1.50275]
[1759334057421,11.49761744,4331.0,4330.9,1.50275]
[1759334061119,11.31211744,4331.0,4330.9,1.50275]
[1759334061423,0.53941744,4331.0,4330.9,4.71055]
[1759334062120,1.26671744,4331.0,4330.9,4.71055]
[1759334062323,1.57041744,4331.0,4330.9,4.71055]
[1759334063124,1.57041744,4331.0,4330.9,45.51055]
[1759334065622,0.53941744,4331.0,4330.9,45.51055]
[1759334066221,0.96251744,4331.0,4330.9,45.51055]
[1759334068226,0.96251744,4331.0,4330.9,45.74455]
[1759334071430,1.71221744,4331.0,4330.9,4.71055]
[1759334072118,1.53691744,4331.0,4330.9,4.71055]
[1759334072734,1.53691744,4331.0,4330.9,3.93915]
[1759334072927,1.71221744,4331.0,4330.9,4.37365]
[1759334073931,11.13221744,4331.0,4330.9,4.37365]
[1759334075429,0.4154,4330.4,4329.9,0.4345]
[1759334075735,1.1728,4330.0,4329.9,1.13245]
[1759334076032,10.25221744,4330.0,4329.9,1.13245]
[1759334076530,9.67015744,4330.0,4329.8,0.41546]
[1759334076721,1.24391744,4329.9,4329.8,1.43906]
[1759334076925,0.53941744,4329.9,4329.8,1.43906]
[1759334077627,9.85691744,4329.9,4329.8,1.43906]
[1759334079032,9.85691744,4329.9,4329.8,1.13246]
[1759334080133,9.85691744,4329.9,4329.8,0.69796]
[1759334080432,9.85691744,4329.9,4329.8,1.13246]
[1759334082634,9.85691744,4329.9,4329.8,0.41546]
[1759334082934,9.85691744,4329.9,4329.8,0.84996]
[1759334083825,9.85691744,4329.9,4329.8,0.41546]
[1759334084035,9.85691744,4329.9,4329.8,1.13246]
[1759334085034,0.9975,4329.8,4329.7,3.85727]
[1759334085232,10.3075,4329.8,4329.7,3.85727]
[1759334085433,10.83992393,4329.8,4329.7,3.85727]
[1759334087424,10.83992393,4329.8,4329.7,4.29177]
[1759334087624,10.83992393,4329.8,4329.7,4.57427]
[1759334087827,10.83978395,4329.8,4329.7,4.57427]
[1759334088629,10.83978395,4329.8,4329.7,4.88087]